[Event "FIDE WSTC-50-65 2022"]
[Site "Acqui Terme"]
[Date "2022.06.21"]
[Round "2.6"]
[White "Shabalov, Alexander"]
[Black "Peist, Juergen"]
[Result "1/2-1/2"]
[ECO "C02"]
[WhiteElo "2504"]
[BlackElo "2303"]
[Annotator "TA"]
[PlyCount "80"]
[EventDate "2022.06.20"]
[EventType "team-tourn"]
[EventCountry "ITA"]
[SourceTitle "playchess.com"]
[Source "ChessBase"]
[SourceQuality "1"]
[TimeControl "40/5400+30:1800+30"]

{[%evp 14,80,42,30,53,47,33,35,54,52,113,0,0,-7,202,118,218,47,37,-44,-6,-29,37,0,2,2,89,90,76,77,66,85,70,62,171,180,166,175,178,184,164,165,166,147,155,163,155,147,177,169,166,87,88,89,97,94,115,122,164,92,158,2,2,6,8,8,8,0,8]} 1. e4 {[%emt 0:01:00]} e6 {[%emt 0:01:00]} 2. d4 {[%emt 0:00:30]} d5 {[%emt 0:00:00]} 3. e5 {[%emt 0:00:00]} c5 {[%emt 0:00:00]} 4. c3 {[%emt 0:00:00]} Nc6 {[%emt 0:00:30]} 5. Nf3 {[%emt 0:00:00]} Bd7 {[%emt 0:00:30]} 6. Be2 {[%emt 0:02:00]} Rc8 {[%emt 0:02:30]} 7. O-O {[%emt 0:04:30]} Qb6 {[%emt 0:02:30]} 8. dxc5 {[%emt 0:05:30]} Bxc5 {[%emt 0:26:30] C02: French: Advance Variation.} 9. b4 {[%emt 0:02:30]} Bf8 {[%emt 0:00:30]} 10. a4 {[%emt 0:14:30] [#]} Qc7 $146 {[%emt 0:11:30] White is slightly better.} ({Predecessor:} 10... a6 11. a5 Qc7 12. Bf4 Nge7 13. Nbd2 Ng6 14. Bg3 Be7 15. b5 axb5 16. Bxb5 O-O {0-1 (51) Rodriguez Mogollon,T (1476)-Florez Caceres,R (1561) Ocana 2019}) 11. Bf4 {[%emt 0:01:30]} f6 {[%emt 0:04:30]} (11... Nf6 $14) 12. Na3 {[%emt 0:07:30]} (12. Re1 $1 $16) 12... Nxe5 $11 {[%emt 0:02:30]} 13. Nd4 {[%emt 0:11:30]} Nh6 $2 {[%emt 0:29:54] Prevents Bg4.} (13... a6 $1 $11 {and Black is okay.}) 14. Bb5 {[%emt 0:11:30]} (14. Bxh6 $18 {Threatens to win with Nab5.} gxh6 15. Nab5) 14... Qd6 {[%emt 0:04:54]} (14... Kd8 $16) 15. c4 $2 {[%emt 0:04:30]} (15. Bxh6 $18 {[%cal Of1e1] Hoping for Re1!} gxh6 16. Qh5+ Ng6 17. Rae1) 15... Nhf7 $1 $14 {[%emt 0:02:52]} 16. Re1 {[%emt 0:15:28]} (16. Bg3 $14) 16... g5 {[%emt 0:00:27]} (16... dxc4 17. Nxc4 $1 Qd5 18. Ne3 $16) (16... Qxb4 $2 17. Nxe6 Qe7 18. cxd5 $18 (18. Qxd5 a6 $16)) (16... a6 $5 {[%cal Ra6b5]} 17. c5 Qe7 18. Bxd7+ Qxd7 $17) 17. Bg3 {[%emt 0:02:31]} (17. c5 Qe7 18. Bg3 a6 19. Bxd7+ Qxd7 $15) 17... Bg7 {[%emt 0:00:29]} (17... dxc4 $2 18. Nxc4 $1 Rxc4 19. Bxc4 $16) (17... Qxb4 $2 18. Nxe6 Qe7 19. Bxe5 (19. Qxd5 a6 $16) 19... fxe5 20. cxd5 $18) (17... a6 $11 18. c5 Qe7 19. Bxd7+ Qxd7) 18. cxd5 {[%emt 0:00:46]} (18. h4 $5 {[%cal Rh4g5]}) 18... Qxd5 {[%emt 0:00:14]} 19. Nf5 {[%emt 0:01:33]} Qxd1 {[%emt 0:00:58]} (19... Bf8 $1 $11 {remains equal.} 20. Bxe5 fxe5) 20. Nxg7+ $16 {[%emt 0:00:24]} Kf8 {[%emt 0:00:37]} 21. Raxd1 {[%emt 0:01:08]} Bxb5 {[%emt 0:00:11]} 22. Nxe6+ {[%emt 0:00:54]} Ke7 {[%emt 0:00:05]} 23. Nc5 $36 {[%emt 0:03:32][%mdl 2048] White has the initiative.} ({Much worse is} 23. axb5 Kxe6 24. b6 a6 $11) 23... b6 {[%emt 0:02:06]} (23... Bc6 $14) 24. Nxb5 $18 {[%emt 0:01:20]} bxc5 {[%emt 0:00:08]} 25. Nxa7 {[%emt 0:00:13]} Rc7 {[%emt 0:03:32] [#]} 26. Nb5 {[%emt 0:00:18]} Rc6 {[%emt 0:00:46]} 27. Rc1 {[%emt 0:01:25]} Ra8 {[%emt 0:00:19] [#]} 28. Nd4 $1 {[%emt 0:02:09][%mdl 512]} Rcc8 {[%emt 0:01:15]} 29. bxc5 {[%emt 0:01:43] White is more active.} Rxa4 {[%emt 0:00:10]} 30. Red1 {[%emt 0:01:10]} Rc4 {[%emt 0:01:26]} 31. Rxc4 {[%emt 0:01:34]} Nxc4 {[%emt 0:00:01]} 32. Nb3 {[%emt 0:00:21]} ({White should play} 32. c6 $18) 32... Nfe5 {[%emt 0:00:56]} 33. f3 {[%emt 0:00:11]} Rb8 {[%emt 0:00:36] [#]} 34. Nd4 {[%emt 0:00:07]} Rb2 {[%emt 0:00:18][%cal Ob2g2]} 35. Bf2 {[%emt 0:00:26]} Nd2 {[%emt 0:01:22]} 36. Ra1 {[%emt 0:02:00]} (36. c6 $18) 36... Nd3 {[%emt 0:00:50]} (36... Nb3 $142 37. Nxb3 Rxb3) 37. Bg3 $2 {[%emt 0:00:43]} (37. c6 $16) 37... Nxc5 $11 {[%emt 0:00:45] The position is equal.} 38. h4 {[%emt 0:00:44]} Rb1+ {[%emt 0:00:32]} 39. Rxb1 {[%emt 0:00:05]} Nxb1 {[%emt 0:00:02]} 40. hxg5 {[%emt 0:00:00]} fxg5 {Weighted Error Value: White=0.33/Black=0.38} 1/2-1/2

[Event "FIDE WSTC-50-65 2022"]
[Site "Acqui Terme"]
[Date "2022.06.21"]
[Round "2.7"]
[White "Fritsch, Rolf"]
[Black "Novikov, Igor"]
[Result "0-1"]
[ECO "D45"]
[WhiteElo "2175"]
[BlackElo "2551"]
[Annotator "TA"]
[PlyCount "76"]
[EventDate "2022.06.20"]
[EventType "team-tourn"]
[EventCountry "ITA"]
[SourceTitle "playchess.com"]
[Source "ChessBase"]
[SourceQuality "1"]
[TimeControl "40/5400+30:1800+30"]

{[%evp 15,76,-27,-31,-36,-39,-20,-20,-25,9,12,31,7,51,38,47,45,78,78,69,70,81,86,86,34,0,12,27,0,0,0,0,0,17,0,25,0,70,55,110,59,126,71,83,76,109,0,23,-91,-82,-127,-129,-127,-116,-116,-139,-123,-107,-124,0,-113,-96,-687,-637]} 1. d4 {[%emt 0:01:00]} d5 {[%emt 0:01:00]} 2. Nf3 {[%emt 0:00:00]} Nf6 {[%emt 0:00:00]} 3. c4 {[%emt 0:00:00]} e6 {[%emt 0:00:00]} 4. Nc3 {[%emt 0:00:30]} c6 {[%emt 0:00:30]} 5. e3 {[%emt 0:00:30]} Nbd7 {[%emt 0:00:00]} 6. Qc2 {[%emt 0:00:30]} Bd6 {[%emt 0:01:00][%cal Bf8d6,Bd6e7,Be7f6,Bf6g7][%mdl 32]} 7. Bd2 {[%emt 0:01:30]} O-O {[%emt 0:01:30]} 8. O-O-O {[%emt 0:00:30]} b5 {[%emt 0:06:30]} 9. e4 {[%emt 0:06:30] is now more promising than 9.cxb5. D45: Semi-Slav: 5 e3.} b4 {[%emt 0:04:30]} (9... bxc4 $2 10. e5 $16) 10. e5 {[%emt 0:05:30]} bxc3 {[%emt 0:00:30]} 11. Bxc3 {[%emt 0:00:30] The position is equal.} Be7 {[%emt 0:04:30]} 12. exf6 {[%emt 0:01:30]} Bxf6 {[%emt 0:02:30] [#]} 13. Kb1 $146 {[%emt 0:12:30]} ({Predecessor:} 13. Bd3 g6 14. c5 a5 15. h4 Ba6 16. h5 Bxd3 17. Qxd3 Qc8 18. Qe3 Re8 19. hxg6 fxg6 {0-1 (37) Shipov,S (2541)-Sanal,V (2601) Chess.com INT 2022}) 13... a5 {[%emt 0:04:30]} 14. Bd3 {[%emt 0:10:30]} g6 {[%emt 0:07:30]} 15. h4 {[%emt 0:14:30]} dxc4 {[%emt 0:08:30]} 16. Be4 {[%emt 0:05:30]} Bg7 {[%emt 0:05:30]} 17. h5 {[%emt 0:06:30]} Nf6 {[%emt 0:02:30]} 18. hxg6 {[%emt 0:04:30]} fxg6 {[%emt 0:00:30] [#]} 19. Bxc6 {[%emt 0:05:30]} (19. Ne5 $1 $16) 19... Ra7 $14 {[%emt 0:02:30]} 20. Ne5 {[%emt 0:12:59]} Nd5 {[%emt 0:02:30]} 21. Nxc4 {[%emt 0:05:23]} (21. Bxd5 $5 exd5 22. Ka1 $11) 21... Nxc3+ {[%emt 0:04:30]} 22. Qxc3 {[%emt 0:02:24]} ({Much worse is} 22. bxc3 Qc7 23. d5 Bb7 $17) 22... Rc7 {[%emt 0:04:30]} 23. Nxa5 {[%emt 0:00:51]} Rxf2 {[%emt 0:03:30]} (23... Qd6 $5 {[%cal Rc8d7]}) 24. Qb4 {[%emt 0:01:19]} Bd7 {[%emt 0:10:30]} 25. Rc1 {[%emt 0:00:59]} Bc8 {[%emt 0:03:30]} (25... Qg5 $11) 26. Nb3 {[%emt 0:00:22]} Rf8 {[%emt 0:01:56]} (26... Ba6 $14) 27. Bf3 {[%emt 0:00:23]} (27. a4 $16) 27... Rd7 {[%emt 0:04:16]} (27... Rxc1+ $14 28. Rxc1 e5) 28. Qc4 {[%emt 0:00:11]} (28. a4 $142) 28... Rd6 {[%emt 0:00:13]} 29. Rhd1 {[%emt 0:00:35]} Qf6 {[%emt 0:01:40]} 30. Qb4 {[%emt 0:01:08]} (30. Rc2 $16) 30... e5 $1 $11 {[%emt 0:01:39]} 31. dxe5 {[%emt 0:00:20] [#]} (31. Nc5 $11 {keeps the balance.}) 31... Qxe5 $1 {[%emt 0:00:16][%csl Gg7][%cal Re5b2]} 32. Nc5 {[%emt 0:00:18]} (32. Rd2 Rfd8) 32... Bf5+ {[%emt 0:01:14] A strong pair of Bishops.} 33. Ka1 {[%emt 0:00:21]} Rxd1 $40 {[%emt 0:02:32][%mdl 128] White is in trouble. Chess con chili.} 34. Rxd1 {[%emt 0:00:12]} Rb8 {[%emt 0:00:20]} 35. Nb7 {[%emt 0:00:16]} h5 {[%emt 0:00:42][%mdl 1024] Black has strong compensation.} 36. a4 {[%emt 0:00:28]} Rc8 {[%emt 0:02:40]} ({Black should play} 36... Kh7 $17 {Threatens to win with ...Ra8.} 37. Re1 Qc7) 37. Re1 {[%emt 0:01:01]} (37. Nd6 $11 {remains equal.} Rc2 38. Nxf5 Qxf5 39. Be4 Rxb2 40. Qc4+ Kh7 41. Bxf5 Rb4+ 42. Ka2 Rxc4 43. Bd7) 37... Qf6 $17 {[%emt 0:00:56] aiming for ...Kh7.} 38. Nc5 $2 {[%emt 0:01:15][%mdl 8192] [#]} (38. Nd6 $17 Rc2 39. Rb1 (39. Nxf5 Rxb2 40. Qc4+ Kh7 $17)) 38... Rxc5 $1 {[%emt 0:00:32][%mdl 512] Weighted Error Value: White=0.43/Black=0.18 (very precise)} 0-1

[Event "FIDE WSTC-50-65 2022"]
[Site "Acqui Terme"]
[Date "2022.06.21"]
[Round "2.8"]
[White "Sokolin, Leonid"]
[Black "Werbeck, Torsten"]
[Result "1/2-1/2"]
[ECO "C16"]
[WhiteElo "2464"]
[BlackElo "2000"]
[Annotator "TA"]
[PlyCount "116"]
[EventDate "2022.06.20"]
[EventType "team-tourn"]
[EventCountry "ITA"]
[SourceTitle "playchess.com"]
[Source "ChessBase"]
[SourceQuality "1"]
[TimeControl "40/5400+30:1800+30"]

{[%evp 10,116,34,33,32,17,33,38,58,47,68,44,45,36,45,27,63,47,79,16,33,24,24,20,72,41,38,6,27,16,16,0,0,-14,-20,-18,-6,-15,0,-1,-1,-1,0,0,0,0,0,0,0,0,0,-23,14,24,19,0,42,14,33,0,0,0,72,54,67,76,127,133,126,127,106,105,120,109,112,109,130,116,87,0,0,0,243,245,303,279,225,176,233,143,403,379,369,366,291,176,176,169,156,0,0,0,0,0,0,0,0,0,0]} 1. e4 {[%emt 0:01:00]} e6 {[%emt 0:01:00]} 2. d4 {[%emt 0:00:00]} d5 {[%emt 0:00:00]} 3. Nc3 {[%emt 0:00:00]} Bb4 {[%emt 0:00:00]} 4. e5 {[%emt 0:00:30]} Qd7 {[%emt 0:00:30]} 5. Bd2 {[%emt 0:01:30]} b6 {[%emt 0:00:30]} 6. Qg4 {[%emt 0:01:30]} Bf8 {[%emt 0:00:30] C16: French: 3 Nc3 Bb4 4 e5: Lines without ...c5.} 7. a4 {[%emt 0:09:30]} a5 {[%emt 0:09:30] [#]} 8. Nge2 $146 {[%emt 0:21:30]} ({Predecessor:} 8. Nb5 Ba6 9. h4 Nh6 10. Bxh6 gxh6 11. Nh3 c6 12. Nc3 Bxf1 13. Rxf1 Na6 14. Qe2 {1-0 (45) Just,H (2137)-Nuding,M (2143) Bayern 2014}) 8... c6 {[%emt 0:01:30] White is slightly better.} 9. h4 {[%emt 0:07:30]} Ba6 {[%emt 0:03:30]} 10. Ng3 {[%emt 0:14:30]} Bxf1 {[%emt 0:08:30]} 11. Kxf1 {[%emt 0:00:00]} Na6 {[%emt 0:00:30]} 12. Nce2 {[%emt 0:05:00]} Nc7 {[%emt 0:03:30]} 13. h5 {[%emt 0:02:30]} Ne7 {[%emt 0:11:30]} 14. Qf3 {[%emt 0:06:30]} (14. h6 $16 g6 15. Bg5) 14... c5 {[%emt 0:11:30]} 15. c3 {[%emt 0:00:30]} Nc6 {[%emt 0:05:30]} 16. Rh4 {[%emt 0:00:30]} cxd4 {[%emt 0:07:30]} (16... h6 $11) 17. cxd4 $16 {[%emt 0:00:30]} Bb4 {[%emt 0:02:30]} 18. Bc3 {[%emt 0:00:30]} O-O-O {[%emt 0:01:30]} 19. Rf4 {[%emt 0:03:30]} Rdf8 {[%emt 0:01:30]} 20. Kg1 {[%emt 0:06:18]} g5 {[%emt 0:03:30]} 21. hxg6 {[%emt 0:03:32]} hxg6 {[%emt 0:03:30]} 22. Rc1 {[%emt 0:00:32]} Kb7 {[%emt 0:00:30]} 23. Bxb4 {[%emt 0:04:38]} axb4 {[%emt 0:01:30]} 24. Qd3 {[%emt 0:03:03]} Na5 {[%emt 0:03:44]} 25. b3 {[%emt 0:00:17]} Na6 {[%emt 0:01:02]} 26. Qf3 {[%emt 0:00:59]} Rh7 {[%emt 0:00:41]} 27. Rf6 {[%emt 0:02:22]} Rc8 {[%emt 0:02:26]} 28. Rxc8 {[%emt 0:00:25]} Kxc8 {[%emt 0:00:02]} 29. Nf1 {[%emt 0:00:41][%cal Bg3f1,Bf1d2,Bd2f3][%mdl 32]} Nc7 {[%emt 0:01:27]} 30. Nd2 {[%emt 0:01:09]} Nc6 {[%emt 0:04:36]} 31. Qd3 {[%emt 0:00:20]} Kb7 {[%emt 0:01:28]} 32. Nf3 {[%emt 0:00:40]} Nd8 {[%emt 0:02:10]} (32... Ne8 $5 {[%cal Re8f6]}) 33. Qd2 {[%emt 0:01:58]} Qe7 {[%emt 0:00:20]} (33... Ne8 $5 {[%cal Re8f6]}) 34. Nc1 {[%emt 0:00:45]} Rh5 {[%emt 0:02:39]} 35. Nd3 {[%emt 0:00:11]} Na6 {[%emt 0:01:15]} (35... Ne8 $1 $11) 36. g4 {[%emt 0:00:06]} Rh7 {[%emt 0:02:14]} 37. Kg2 $36 {[%emt 0:00:54][%mdl 2048] White is really pushing.} Nc6 {[%emt 0:03:08]} (37... Rh8 $142) 38. Ng5 {[%emt 0:00:53]} Rg7 {[%emt 0:00:01]} 39. Qf4 {[%emt 0:00:00][%cal Rg5f7]} Nd8 {[%emt 0:00:30]} 40. Qh2 {[%emt 0:00:00] Hoping for Qh8.} Nc7 {[%emt 0:00:00]} 41. Qh6 {[%emt 0:09:17]} (41. Qh3 {is more complex.} Ne8 42. Qh8 Kc7 43. Nxb4 Nxf6 44. exf6 Qxf6 45. Nf3) 41... Ne8 {[%emt 0:03:17]} 42. Rf4 {[%emt 0:02:30][%cal Bf6f4,Bf4h4,Bh4h1][%mdl 32] 0x0.00207b4344d5dp-1022s more active pieces.} Ka6 {[%emt 0:12:02]} 43. Nf3 {[%emt 0:10:54]} Nc6 {[%emt 0:10:06]} 44. g5 {[%emt 0:07:17]} (44. Qh8 $16) 44... Qf8 $11 {[%emt 0:03:08]} 45. Qh1 {[%emt 0:00:37]} Qe7 $2 {[%emt 0:01:35]} (45... Kb7 $11) 46. Qh8 $1 $18 {[%emt 0:00:59] Nh2 is the strong threat.} Ka5 {[%emt 0:01:42]} 47. Rh4 {[%emt 0:00:36]} Ka6 {[%emt 0:02:08]} 48. Kg3 {[%emt 0:01:22]} Kb7 {[%emt 0:00:18]} (48... Ka7 $142 49. Rh1 Kb7) 49. Rh1 {[%emt 0:02:12]} Na5 $2 {[%emt 0:01:19][%mdl 8192] [#]} (49... Qd8 $16 50. Kh3 Qe7) 50. Nxb4 $1 {[%emt 0:00:47][%mdl 512]} Nxb3 {[%emt 0:00:05]} 51. Nc2 {[%emt 0:00:40]} Nd2 {[%emt 0:00:37]} 52. Nxd2 {[%emt 0:01:23] And now Nf3 would win.} Qxg5+ {[%emt 0:00:01] [#]} 53. Kf3 $1 {[%emt 0:00:00]} Qxd2 {[%emt 0:00:48] [#]} 54. Qxe8 $2 {[%emt 0:00:52] Really sharp!} (54. Ne3 $1 $16 Qxd4 55. Rh4) 54... Qxc2 $11 {[%emt 0:00:02] The position is equal.} 55. Rh8 {[%emt 0:00:05] Qb8+ would kill now.} Qf5+ {[%emt 0:00:43]} (55... Qe4+ {is a self mate.} 56. Kg3) 56. Kg3 {[%emt 0:00:41]} Qg5+ {[%emt 0:00:16]} 57. Kh3 {[%emt 0:00:37] Intending Qa8+ and mate.} Qf5+ {[%emt 0:00:29]} 58. Kg3 {[%emt 0:00:27] White threatens Qa8+ and mate.} Qg5+ {[%emt 0:00:14] Weighted Error Value: White=0.15 (very precise) /Black=0.25 (precise)} 1/2-1/2

[Event "FIDE WSTC-50-65 2022"]
[Site "Acqui Terme"]
[Date "2022.06.21"]
[Round "2.10"]
[White "Vegh, Endre"]
[Black "Birnboim, Nathan"]
[Result "1-0"]
[ECO "D10"]
[WhiteElo "2225"]
[BlackElo "2383"]
[Annotator "TA"]
[PlyCount "129"]
[EventDate "2022.06.20"]
[EventType "team-tourn"]
[EventCountry "ITA"]
[SourceTitle "playchess.com"]
[Source "ChessBase"]
[SourceQuality "1"]
[TimeControl "40/5400+30:1800+30"]

{[%evp 9,129,-15,15,-16,18,23,20,19,25,5,19,2,52,54,208,197,209,193,194,183,177,188,195,193,195,192,208,168,172,166,186,175,216,207,209,205,212,212,275,280,303,299,283,302,447,278,329,325,375,375,487,354,412,440,388,442,447,440,421,422,396,370,439,371,371,371,372,360,326,336,328,334,343,335,352,352,324,322,310,248,286,272,277,268,401,404,395,372,633,593,715,544,860,894,882,809,765,695,1556,1381,2191,2018,2013,1960,1793,1584,29977,29977,29978,29979,29985,29986,29986,29987,29987,29984,29984,29984,29988,29989,29989,29989]} 1. d4 {[%emt 0:01:00]} d5 {[%emt 0:01:00]} 2. c4 {[%emt 0:00:30]} c6 {[%emt 0:00:00]} 3. cxd5 {[%emt 0:00:30]} cxd5 {[%emt 0:00:00]} 4. Bg5 {[%emt 0:01:30]} Nc6 {[%emt 0:06:30]} 5. Nc3 {[%emt 0:00:30]} Qb6 {[%emt 0:02:30]} (5... f6 $5 {[%cal Rf6g5]} 6. Bd2 e5 $11) 6. Qd2 {[%emt 0:01:30] D10: Slav Defence: 3 cxd5 (without early Nf3) and 3 Nc3.} e6 {[%emt 0:01:30]} (6... f6 $5 {[%cal Rf6g5]} 7. Bh4 (7. Nxd5 $2 Qd8 $17) 7... Qxd4 8. Qxd4 Nxd4 $11) 7. e3 {[%emt 0:00:30]} Bd7 {[%emt 0:01:30]} 8. Bd3 {[%emt 0:01:30] The position is equal.} Rc8 {[%emt 0:00:30] [#]} 9. Rc1 $146 {[%emt 0:02:30]} ({Predecessor:} 9. Nf3 Bb4 10. Rc1 Na5 11. O-O f6 12. Bf4 Ne7 13. Qe2 g5 14. Bxg5 fxg5 15. Nxg5 {1-0 (22) Nothnagel,M (2317)-Niermann,T (2327) Willingen 2018}) 9... Na5 {[%emt 0:03:30]} 10. Nf3 {[%emt 0:02:30]} Bd6 {[%emt 0:05:30]} ({Better is} 10... f6 $11 11. Bf4 Nc4 12. Bxc4 Rxc4) 11. O-O $14 {[%emt 0:07:30]} f5 $2 {[%emt 0:09:30] [#] Inhibits e4.} (11... f6 $14) 12. Na4 $1 $18 {[%emt 0:07:30][%mdl 512]} Qb4 {[%emt 0:01:30] Threatens to win with ...Rxc1.} 13. Qxb4 {[%emt 0:02:30]} Bxb4 {[%emt 0:00:00]} 14. Rxc8+ {[%emt 0:05:30]} Bxc8 {[%emt 0:00:00] [#]} 15. Bb5+ {[%emt 0:00:30]} Nc6 {[%emt 0:04:30]} 16. Bxc6+ {[%emt 0:03:30]} bxc6 {[%emt 0:00:30]} 17. Rc1 {[%emt 0:00:30]} h6 {[%emt 0:04:30]} 18. Bh4 {[%emt 0:05:30]} (18. Rxc6 Bd7 19. Ra6 hxg5 $11) 18... g5 {[%emt 0:07:30]} 19. Bg3 {[%emt 0:00:00]} (19. Rxc6 Ne7 20. Rc7 gxh4 $15) 19... Ne7 {[%emt 0:04:30]} 20. Bb8 {[%emt 0:03:00] Against f4} Ng6 {[%emt 0:08:30]} 21. Bxa7 {[%emt 0:07:30]} ({Don't take} 21. a3 Be7 22. Ne5 (22. Bxa7 g4 $16) 22... Nxe5) 21... g4 {[%emt 0:01:30]} 22. Ne5 {[%emt 0:01:30]} ({Weaker is} 22. Rxc6 Ne7 23. Rb6 gxf3 $11) 22... Nxe5 {[%emt 0:00:00]} 23. dxe5 {[%emt 0:00:00]} Bd7 {[%emt 0:02:00]} 24. Bc5 {[%emt 0:07:00]} Bd2 {[%emt 0:06:30]} 25. Rc2 {[%emt 0:00:30]} Ba5 {[%emt 0:00:30]} 26. Bd6 {[%emt 0:02:30]} Bd8 {[%emt 0:02:30]} (26... Rh7 $142 27. b4 Bd8) 27. Nc5 {[%emt 0:00:30] Hoping for Rc3.} Bc8 {[%emt 0:00:30]} 28. Rc3 {[%emt 0:04:30]} Bb6 {[%emt 0:09:08]} 29. Na4 {[%emt 0:01:30][%csl LRb6,LRc6]} Bd8 {[%emt 0:02:13]} 30. Rxc6 {[%emt 0:02:30]} Bd7 {[%emt 0:07:03]} 31. Ra6 {[%emt 0:00:30]} Bxa4 {[%emt 0:00:34]} 32. Rxa4 {[%emt 0:00:30][%mdl 4096] Endgame KRB-KRB} Rh7 {[%emt 0:00:06]} 33. Ra8 {[%emt 0:04:30]} Rb7 {[%emt 0:00:06]} 34. g3 {[%emt 0:05:30]} Kd7 {[%emt 0:01:16]} 35. b3 {[%emt 0:02:06]} Bc7 {[%emt 0:01:56]} 36. Ra6 {[%emt 0:04:32]} Bxd6 {[%emt 0:00:54]} 37. Rxd6+ {[%emt 0:00:19] KR-KR} ({Not} 37. exd6 h5 38. Kg2 Rb8 $16) 37... Ke7 {[%emt 0:00:06]} 38. Rc6 {[%emt 0:00:18]} Kd7 {[%emt 0:03:45]} 39. Rc2 {[%emt 0:00:32]} Rb4 {[%emt 0:00:17]} 40. Kf1 {[%emt 0:00:00]} Re4 {[%emt 0:00:00]} 41. Rd2 {[%emt 0:09:43]} Rxe5 {[%emt 0:00:36]} 42. Rd4 {[%emt 0:00:30]} Re4 {[%emt 0:01:30]} 43. Ke2 {[%emt 0:02:30]} Kc6 {[%emt 0:01:30]} 44. Rd2 {[%emt 0:08:30]} Rb4 {[%emt 0:04:30]} 45. Kd3 {[%emt 0:00:30]} Rb8 {[%emt 0:00:30]} 46. Kc3 {[%emt 0:02:30]} h5 {[%emt 0:00:30]} (46... Rc8 $142 47. Kb2 Kd6) 47. b4 {[%emt 0:02:30]} h4 {[%emt 0:01:30]} 48. Kb3 {[%emt 0:00:30]} h3 $2 {[%emt 0:02:30]} (48... hxg3 49. hxg3 Rh8) 49. a4 {[%emt 0:00:30]} e5 {[%emt 0:03:30]} 50. Rc2+ {[%emt 0:00:30]} Kd6 {[%emt 0:00:00]} 51. b5 {[%emt 0:00:30]} d4 {[%emt 0:05:00]} 52. exd4 {[%emt 0:01:30]} exd4 {[%emt 0:00:00]} 53. Kb4 {[%emt 0:00:30]} Kd5 {[%emt 0:00:00]} 54. a5 {[%emt 0:01:30]} d3 {[%emt 0:00:30]} 55. Rd2 {[%emt 0:01:26]} Kd4 {[%emt 0:00:30]} 56. a6 {[%emt 0:00:33] Strongly threatening a7.} Ra8 {[%emt 0:01:30]} 57. Rd1 {[%emt 0:01:09]} Ke4 {[%emt 0:00:30]} 58. Ka5 {[%emt 0:00:45] White mates.} Kf3 {[%emt 0:00:30]} 59. Rxd3+ {[%emt 0:01:31]} Kg2 {[%emt 0:00:00]} 60. b6 {[%emt 0:00:34][%cal Bb5b6,Bb6b7][%mdl 32]} Kxh2 {[%emt 0:00:00]} 61. b7 {[%emt 0:01:26]} Rb8 {[%emt 0:01:44]} 62. Kb6 {[%emt 0:01:22]} Kg2 {[%emt 0:00:23]} 63. a7 {[%emt 0:00:48]} h2 {[%emt 0:00:27]} 64. axb8=Q {[%emt 0:02:06]} h1=Q {[%emt 0:00:26]} 65. Qd6 {[%emt 0:00:28] White took control after the opening.  Weighted Error Value: White=0.16 (very precise) /Black=0.41} 1-0

[Event "FIDE WSTC-50-65 2022"]
[Site "Acqui Terme"]
[Date "2022.06.21"]
[Round "2.11"]
[White "Berkovich, Mark A"]
[Black "Glatt, Gabor"]
[Result "1/2-1/2"]
[ECO "B07"]
[WhiteElo "2337"]
[BlackElo "2243"]
[Annotator "TA"]
[PlyCount "32"]
[EventDate "2022.06.20"]
[EventType "team-tourn"]
[EventCountry "ITA"]
[SourceTitle "playchess.com"]
[Source "ChessBase"]
[SourceQuality "1"]
[TimeControl "40/5400+30:1800+30"]

{[%evp 12,32,19,10,53,48,46,39,29,41,36,43,37,35,53,18,69,19,13,0,2,-10,0]} 1. Nf3 {[%emt 0:01:00]} Nf6 {[%emt 0:01:00]} 2. g3 {[%emt 0:00:00]} g6 {[%emt 0:00:00]} 3. Bg2 {[%emt 0:00:00]} Bg7 {[%emt 0:00:00]} 4. O-O {[%emt 0:00:00]} O-O {[%emt 0:00:30]} 5. d4 {[%emt 0:00:00]} d6 {[%emt 0:00:00]} 6. Nc3 {[%emt 0:00:00]} Nbd7 {[%emt 0:03:00]} 7. e4 {[%emt 0:00:00][%cal Be2e4,Be4e5][%mdl 32] 7.a4 is more fashionable.} c5 {[%emt 0:00:30] B07: Pirc Defence: Miscellaneous Systems.} 8. e5 {[%emt 0:01:30]} Ne8 {[%emt 0:02:30] [#]} 9. Bg5 $146 {[%emt 0:03:30]} ({Predecessor:} 9. exd6 Nxd6 10. Re1 Nf5 11. d5 a6 12. a4 b6 13. g4 Nd6 14. Bg5 Re8 15. Qe2 {½-½ (72) Teterev,V (2506)-Schachinger,M (2402) Rhodes 2013}) 9... h6 {[%emt 0:17:30] ...cxd4 is the strong threat. White is slightly better.} 10. Be3 {[%emt 0:00:30][%cal Oe5e6,Bg5e3,Be3d4,Bd4e5,Be5f4][%mdl 32]} ({Reject} 10. Bf4 cxd4 11. Qxd4 g5 $11) 10... cxd4 {[%emt 0:01:30]} 11. Bxd4 {[%emt 0:00:30]} dxe5 {[%emt 0:02:30] [#]} 12. Bxe5 {[%emt 0:00:30][%mdl 64] Pin} Nef6 {[%emt 0:01:30]} (12... Nd6 13. Bxg7) 13. Bf4 {[%emt 0:05:30]} Qa5 {[%emt 0:03:30]} ({Black should play} 13... g5 $11 14. Be3 Ng4) 14. Qd2 {[%emt 0:04:30] White is more active.} (14. Re1 $14) 14... g5 $11 {[%emt 0:05:30] The position is equal.} 15. Be3 {[%emt 0:08:30]} Nb6 $1 {[%emt 0:02:30]} 16. Ne4 {[%emt 0:09:30]} Qxd2 {[%emt 0:03:30] Weighted Error Value: White=0.11 (very precise) /Black=0.13 (very precise)} 1/2-1/2